[Event "Titled Tuesday Blitz September 14 2021"]
[White "Erdogmus, Yagiz Kaan"]
[Black "Maly, Alexey"]
[WhiteFideId "44599790"]
[BlackFideId "14103184"]
[WhiteElo "1783"]
[BlackElo "2250"]
[Result "0-1"]
[Round "11"]
[TimeControl "180+1"]
[Date "2021.09.15"]
[WhiteClock "0:00:05"]
[BlackClock "0:00:08"]

1. e4 {[%clk 0:03:00]}  c6 {[%clk 0:02:59]} 2. Nc3 {[%clk 0:03:00]}  d5 {[%clk 0:03:00]} 3. Nf3 {[%clk 0:03:00]}  Bg4 {[%clk 0:02:59]} 4. h3 {[%clk 0:03:00]}  Bxf3 {[%clk 0:02:59]} 5. Qxf3 {[%clk 0:03:01]}  e6 {[%clk 0:02:59]} 6. d4 {[%clk 0:03:01]}  dxe4 {[%clk 0:02:59]} 7. Nxe4 {[%clk 0:02:58]}  Nd7 {[%clk 0:02:58]} 8. Bd3 {[%clk 0:02:56]}  Ngf6 {[%clk 0:02:58]} 9. c3 {[%clk 0:02:56]}  Nxe4 {[%clk 0:02:57]} 10. Bxe4 {[%clk 0:02:57]}  Nf6 {[%clk 0:02:57]} 11. Bd3 {[%clk 0:02:57]}  Be7 {[%clk 0:02:56]} 12. O-O {[%clk 0:02:56]}  O-O {[%clk 0:02:56]} 13. Re1 {[%clk 0:02:56]}  Qb6 {[%clk 0:02:50]} 14. Rb1 {[%clk 0:02:50]}  Nd5 {[%clk 0:02:46]} 15. Bd2 {[%clk 0:02:39]}  Rad8 {[%clk 0:02:41]} 16. b4 {[%clk 0:02:26]}  Qc7 {[%clk 0:02:29]} 17. g3 {[%clk 0:02:21]}  b5 {[%clk 0:02:27]} 18. Re2 {[%clk 0:02:11]}  a6 {[%clk 0:02:22]} 19. h4 {[%clk 0:02:09]}  g6 {[%clk 0:02:18]} 20. Kg2 {[%clk 0:02:05]}  h5 {[%clk 0:02:15]} 21. Rh1 {[%clk 0:01:54]}  Nf6 {[%clk 0:02:05]} 22. Bf4 {[%clk 0:01:50]}  Qd7 {[%clk 0:02:02]} 23. Re5 {[%clk 0:01:33]}  Nd5 {[%clk 0:01:43]} 24. Bh6 {[%clk 0:00:56]}  Rfe8 {[%clk 0:01:30]} 25. g4 {[%clk 0:00:47]}  hxg4 {[%clk 0:01:28]} 26. Qxg4 {[%clk 0:00:46]}  Bf6 {[%clk 0:01:28]} 27. Ree1 {[%clk 0:00:24]}  Nxc3 {[%clk 0:01:23]} 28. Be3 {[%clk 0:00:16]}  Qd5+ {[%clk 0:01:20]} 29. Kg1 {[%clk 0:00:15]}  Bxd4 {[%clk 0:01:10]} 30. h5 {[%clk 0:00:15]}  Bxe3 {[%clk 0:01:07]} 31. hxg6 {[%clk 0:00:15]}  f5 {[%clk 0:00:55]} 32. Qh5 {[%clk 0:00:11]}  Bxf2+ {[%clk 0:00:52]} 33. Kxf2 {[%clk 0:00:11]}  Qd4+ {[%clk 0:00:49]} 34. Re3 {[%clk 0:00:10]}  Qf4+ {[%clk 0:00:45]} 35. Rf3 {[%clk 0:00:08]}  Qd2+ {[%clk 0:00:40]} 36. Kg3 {[%clk 0:00:08]}  Kg7 {[%clk 0:00:38]} 37. Qh7+ {[%clk 0:00:07]}  Kf6 {[%clk 0:00:38]} 38. Qh4+ {[%clk 0:00:03]}  Qg5+ {[%clk 0:00:32]} 39. Qxg5+ {[%clk 0:00:03]}  Kxg5 {[%clk 0:00:33]} 40. g7 {[%clk 0:00:03]}  Rg8 {[%clk 0:00:27]} 41. Kf2 {[%clk 0:00:03]}  Rxg7 {[%clk 0:00:21]} 42. Rc1 {[%clk 0:00:03]}  Nd5 {[%clk 0:00:12]} 43. a3 {[%clk 0:00:03]}  Rd6 {[%clk 0:00:10]} 44. Rg1+ {[%clk 0:00:01]}  Kf6 {[%clk 0:00:10]} 45. Rh1 {[%clk 0:00:02]}  Ne7 {[%clk 0:00:07]} 46. Re1 {[%clk 0:00:01]}  Ng6 {[%clk 0:00:07]} 47. Bc2 {[%clk 0:00:01]}  Ne5 {[%clk 0:00:07]} 48. Re2 {[%clk 0:00:02]}  Nxf3 {[%clk 0:00:07]} 49. Kxf3 {[%clk 0:00:03]}  e5 {[%clk 0:00:08]} 50. Ke3 {[%clk 0:00:03]}  Rg3+ {[%clk 0:00:07]} 51. Kf2 {[%clk 0:00:03]}  Rxa3 {[%clk 0:00:07]} 52. Kf1 {[%clk 0:00:02]}  Ra1+ {[%clk 0:00:07]} 53. Kf2 {[%clk 0:00:03]}  Ra2 {[%clk 0:00:07]} 54. Ke3 {[%clk 0:00:03]}  f4+ {[%clk 0:00:07]} 55. Kf3 {[%clk 0:00:03]}  Rxc2 {[%clk 0:00:06]} 56. Rxc2 {[%clk 0:00:03]}  Kf5 {[%clk 0:00:06]} 57. Rc5 {[%clk 0:00:03]}  Rd3+ {[%clk 0:00:07]} 58. Ke2 {[%clk 0:00:04]}  Rd4 {[%clk 0:00:07]} 59. Rxc6 {[%clk 0:00:04]}  Rxb4 {[%clk 0:00:07]} 60. Rxa6 {[%clk 0:00:05]}  Rb2+ {[%clk 0:00:07]} 61. Kf3 {[%clk 0:00:05]}  e4# {[%clk 0:00:08]} 0-1


[Site "https://www.chess.com"]

[Event "Titled Tuesday Blitz September 14 2021"]
[White "Goltsev, Dmitry"]
[Black "Nozdrachev, Leonid"]
[WhiteFideId "24176710"]
[BlackFideId "24113433"]
[WhiteElo "2334"]
[BlackElo "2196"]
[Result "1-0"]
[Round "11"]
[TimeControl "180+1"]
[Date "2021.09.15"]
[WhiteClock "0:01:25"]
[BlackClock "0:00:44"]

1. e4 {[%clk 0:02:58]}  c6 {[%clk 0:02:59]} 2. d4 {[%clk 0:02:57]}  d5 {[%clk 0:02:59]} 3. Nc3 {[%clk 0:02:54]}  dxe4 {[%clk 0:02:59]} 4. Nxe4 {[%clk 0:02:55]}  Nf6 {[%clk 0:02:59]} 5. Nxf6+ {[%clk 0:02:53]}  exf6 {[%clk 0:03:00]} 6. c3 {[%clk 0:02:51]}  Bd6 {[%clk 0:03:00]} 7. Bd3 {[%clk 0:02:45]}  Na6 {[%clk 0:03:00]} 8. Ne2 {[%clk 0:02:40]}  h5 {[%clk 0:03:00]} 9. Bd2 {[%clk 0:02:38]}  Kf8 {[%clk 0:02:59]} 10. Qc2 {[%clk 0:02:38]}  Nc7 {[%clk 0:02:59]} 11. O-O-O {[%clk 0:02:38]}  Be6 {[%clk 0:02:58]} 12. Kb1 {[%clk 0:02:36]}  b5 {[%clk 0:02:58]} 13. Nf4 {[%clk 0:02:34]}  Bxf4 {[%clk 0:02:54]} 14. Bxf4 {[%clk 0:02:33]}  a5 {[%clk 0:02:54]} 15. Rhe1 {[%clk 0:02:27]}  Nd5 {[%clk 0:02:52]} 16. Bd2 {[%clk 0:02:18]}  a4 {[%clk 0:02:52]} 17. c4 {[%clk 0:02:17]}  bxc4 {[%clk 0:02:51]} 18. Qxc4 {[%clk 0:02:16]}  g6 {[%clk 0:02:41]} 19. Qxc6 {[%clk 0:02:06]}  Kg7 {[%clk 0:02:34]} 20. Rc1 {[%clk 0:01:58]}  Qb8 {[%clk 0:02:31]} 21. Rxe6 {[%clk 0:01:54]}  a3 {[%clk 0:02:07]} 22. b3 {[%clk 0:01:49]}  fxe6 {[%clk 0:01:47]} 23. Qd7+ {[%clk 0:01:48]}  Kf8 {[%clk 0:01:47]} 24. Bxg6 {[%clk 0:01:41]}  Ne7 {[%clk 0:01:45]} 25. Qxe6 {[%clk 0:01:30]}  Nxg6 {[%clk 0:00:52]} 26. Qxf6+ {[%clk 0:01:29]}  Kg8 {[%clk 0:00:53]} 27. Qxg6+ {[%clk 0:01:29]}  Kf8 {[%clk 0:00:54]} 28. Rc7 {[%clk 0:01:24]}  Qxc7 {[%clk 0:00:47]} 29. Bb4+ {[%clk 0:01:24]}  Qe7 {[%clk 0:00:45]} 30. Qf6+ {[%clk 0:01:25]}  Kg8 {[%clk 0:00:44]} 31. Bxe7 {[%clk 0:01:25]} 1-0


[Site "https://www.chess.com"]

[Event "Titled Tuesday Blitz September 14 2021"]
[White "Golubev, Mikhail"]
[Black "Csonka, Balazs"]
[WhiteFideId "14100983"]
[BlackFideId "742910"]
[WhiteElo "2374"]
[BlackElo "2404"]
[Result "0-1"]
[Round "11"]
[TimeControl "180+1"]
[Date "2021.09.15"]
[WhiteClock "0:00:08"]
[BlackClock "0:00:05"]

1. e4 {[%clk 0:03:00]}  e6 {[%clk 0:03:00]} 2. Nc3 {[%clk 0:03:00]}  d5 {[%clk 0:03:01]} 3. d4 {[%clk 0:03:00]}  Nf6 {[%clk 0:03:00]} 4. Bg5 {[%clk 0:02:59]}  dxe4 {[%clk 0:02:59]} 5. Nxe4 {[%clk 0:02:58]}  Be7 {[%clk 0:03:00]} 6. Nxf6+ {[%clk 0:02:57]}  Bxf6 {[%clk 0:02:59]} 7. Bxf6 {[%clk 0:02:57]}  Qxf6 {[%clk 0:03:00]} 8. Qd2 {[%clk 0:02:58]}  O-O {[%clk 0:02:47]} 9. O-O-O {[%clk 0:02:56]}  Rd8 {[%clk 0:02:47]} 10. Qc3 {[%clk 0:02:54]}  Qf4+ {[%clk 0:02:09]} 11. Kb1 {[%clk 0:02:54]}  Bd7 {[%clk 0:02:07]} 12. Nh3 {[%clk 0:02:11]}  Qd6 {[%clk 0:01:57]} 13. Bd3 {[%clk 0:02:03]}  Bc6 {[%clk 0:01:52]} 14. f3 {[%clk 0:01:57]}  Nd7 {[%clk 0:01:50]} 15. Nf2 {[%clk 0:01:44]}  Nf6 {[%clk 0:01:39]} 16. Qd2 {[%clk 0:01:39]}  a5 {[%clk 0:01:28]} 17. c3 {[%clk 0:01:37]}  b5 {[%clk 0:01:21]} 18. Ne4 {[%clk 0:01:37]}  Bxe4 {[%clk 0:01:13]} 19. fxe4 {[%clk 0:01:33]}  Qb6 {[%clk 0:00:55]} 20. e5 {[%clk 0:01:29]}  Nd5 {[%clk 0:00:55]} 21. Rhf1 {[%clk 0:01:26]}  b4 {[%clk 0:00:47]} 22. c4 {[%clk 0:01:16]}  Nc3+ {[%clk 0:00:46]} 23. Ka1 {[%clk 0:01:15]}  Nxd1 {[%clk 0:00:45]} 24. Rxd1 {[%clk 0:01:15]}  c6 {[%clk 0:00:32]} 25. c5 {[%clk 0:01:11]}  Qc7 {[%clk 0:00:30]} 26. Qf4 {[%clk 0:01:08]}  Rd7 {[%clk 0:00:24]} 27. h4 {[%clk 0:01:05]}  Rad8 {[%clk 0:00:23]} 28. Bb1 {[%clk 0:00:59]}  Rd5 {[%clk 0:00:13]} 29. h5 {[%clk 0:00:59]}  Qd7 {[%clk 0:00:12]} 30. h6 {[%clk 0:00:59]}  Rxd4 {[%clk 0:00:05]} 31. Rxd4 {[%clk 0:00:55]}  Qxd4 {[%clk 0:00:05]} 32. Qg5 {[%clk 0:00:56]}  g6 {[%clk 0:00:05]} 33. Qf6 {[%clk 0:00:56]}  Kf8 {[%clk 0:00:05]} 34. g4 {[%clk 0:00:40]}  a4 {[%clk 0:00:05]} 35. Qh8+ {[%clk 0:00:23]}  Ke7 {[%clk 0:00:05]} 36. Qf6+ {[%clk 0:00:24]}  Ke8 {[%clk 0:00:06]} 37. Qh8+ {[%clk 0:00:23]}  Kd7 {[%clk 0:00:06]} 38. Qxh7 {[%clk 0:00:24]}  Ke7 {[%clk 0:00:03]} 39. Qg7 {[%clk 0:00:22]}  a3 {[%clk 0:00:03]} 40. Qf6+ {[%clk 0:00:21]}  Ke8 {[%clk 0:00:04]} 41. Qxf7+ {[%clk 0:00:08]}  Kxf7 {[%clk 0:00:05]} 42. Bxg6+ {[%clk 0:00:08]}  Kxg6 {[%clk 0:00:05]} 0-1


[Site "https://www.chess.com"]

[Event "Titled Tuesday Blitz September 14 2021"]
[White "Jones, Gawain C B"]
[Black "Mirzoev, Azer"]
[WhiteFideId "409561"]
[BlackFideId "13400304"]
[WhiteElo "2657"]
[BlackElo "2525"]
[Result "1-0"]
[Round "11"]
[TimeControl "180+1"]
[Date "2021.09.15"]
[WhiteClock "0:00:05"]
[BlackClock "0:00:01"]

1. d4 {[%clk 0:03:00]}  d5 {[%clk 0:02:59]} 2. c4 {[%clk 0:02:58]}  e6 {[%clk 0:02:59]} 3. Nf3 {[%clk 0:02:56]}  Be7 {[%clk 0:02:58]} 4. g3 {[%clk 0:02:56]}  Nf6 {[%clk 0:02:57]} 5. Bg2 {[%clk 0:02:56]}  O-O {[%clk 0:02:57]} 6. O-O {[%clk 0:02:56]}  Nbd7 {[%clk 0:02:55]} 7. Qc2 {[%clk 0:02:54]}  c6 {[%clk 0:02:55]} 8. Nbd2 {[%clk 0:02:53]}  b6 {[%clk 0:02:54]} 9. e4 {[%clk 0:02:53]}  Ba6 {[%clk 0:02:53]} 10. Re1 {[%clk 0:02:52]}  Rc8 {[%clk 0:02:44]} 11. e5 {[%clk 0:02:44]}  Ne8 {[%clk 0:02:43]} 12. Qa4 {[%clk 0:02:37]}  Bxc4 {[%clk 0:02:42]} 13. Nxc4 {[%clk 0:02:35]}  b5 {[%clk 0:02:42]} 14. Qxa7 {[%clk 0:02:35]}  bxc4 {[%clk 0:02:42]} 15. Qa4 {[%clk 0:02:34]}  c5 {[%clk 0:02:38]} 16. Be3 {[%clk 0:02:34]}  cxd4 {[%clk 0:02:36]} 17. Bxd4 {[%clk 0:02:34]}  Nc5 {[%clk 0:02:31]} 18. Qc2 {[%clk 0:02:29]}  Nc7 {[%clk 0:02:27]} 19. Bxc5 {[%clk 0:02:16]}  Bxc5 {[%clk 0:02:27]} 20. b3 {[%clk 0:02:16]}  Nb5 {[%clk 0:02:16]} 21. a4 {[%clk 0:02:11]}  cxb3 {[%clk 0:02:13]} 22. Qb2 {[%clk 0:02:07]}  Na7 {[%clk 0:02:05]} 23. Qxb3 {[%clk 0:02:07]}  Rb8 {[%clk 0:02:02]} 24. Qc2 {[%clk 0:02:04]}  Rc8 {[%clk 0:02:01]} 25. h4 {[%clk 0:02:00]}  h6 {[%clk 0:02:00]} 26. Qe2 {[%clk 0:01:45]}  Qa5 {[%clk 0:01:56]} 27. Nd2 {[%clk 0:01:42]}  Bb4 {[%clk 0:01:39]} 28. Nb3 {[%clk 0:01:41]}  Qb6 {[%clk 0:01:37]} 29. a5 {[%clk 0:01:39]}  Qb8 {[%clk 0:01:30]} 30. Reb1 {[%clk 0:01:08]}  Bc3 {[%clk 0:01:29]} 31. Nd4 {[%clk 0:01:03]}  Qc7 {[%clk 0:01:23]} 32. Rc1 {[%clk 0:01:01]}  Qd7 {[%clk 0:01:09]} 33. Qe3 {[%clk 0:00:52]}  Bxa1 {[%clk 0:01:08]} 34. Rxa1 {[%clk 0:00:53]}  Rb8 {[%clk 0:00:58]} 35. Bf1 {[%clk 0:00:52]}  Rfc8 {[%clk 0:00:56]} 36. Bd3 {[%clk 0:00:49]}  Rb2 {[%clk 0:00:46]} 37. a6 {[%clk 0:00:48]}  Qc7 {[%clk 0:00:44]} 38. Ne2 {[%clk 0:00:46]}  Qb6 {[%clk 0:00:41]} 39. Qf3 {[%clk 0:00:38]}  Rb3 {[%clk 0:00:38]} 40. Nf4 {[%clk 0:00:37]}  Rcc3 {[%clk 0:00:34]} 41. Qd1 {[%clk 0:00:23]}  Qc7 {[%clk 0:00:26]} 42. Qe2 {[%clk 0:00:20]}  Rc1+ {[%clk 0:00:21]} 43. Rxc1 {[%clk 0:00:19]}  Qxc1+ {[%clk 0:00:21]} 44. Kh2 {[%clk 0:00:19]}  Qc7 {[%clk 0:00:21]} 45. Nh5 {[%clk 0:00:19]}  Rc3 {[%clk 0:00:14]} 46. Qg4 {[%clk 0:00:18]}  Qxe5 {[%clk 0:00:13]} 47. Be2 {[%clk 0:00:13]}  g6 {[%clk 0:00:10]} 48. Nf4 {[%clk 0:00:11]}  Kg7 {[%clk 0:00:10]} 49. Bf1 {[%clk 0:00:09]}  Rc2 {[%clk 0:00:09]} 50. Kg1 {[%clk 0:00:08]}  Ra2 {[%clk 0:00:08]} 51. Qd1 {[%clk 0:00:07]}  Nc6 {[%clk 0:00:07]} 52. Qc1 {[%clk 0:00:07]}  Nd4 {[%clk 0:00:07]} 53. Qd1 {[%clk 0:00:06]}  Ra1 {[%clk 0:00:06]} 54. Qd3 {[%clk 0:00:06]}  h5 {[%clk 0:00:06]} 55. Kg2 {[%clk 0:00:05]}  Nf5 {[%clk 0:00:05]} 56. Kg1 {[%clk 0:00:04]}  Nd4 {[%clk 0:00:05]} 57. Qe3 {[%clk 0:00:02]}  Qxe3 {[%clk 0:00:05]} 58. fxe3 {[%clk 0:00:03]}  Nf5 {[%clk 0:00:05]} 59. Kf2 {[%clk 0:00:03]}  Ra2+ {[%clk 0:00:04]} 60. Be2 {[%clk 0:00:04]}  Nd6 {[%clk 0:00:03]} 61. Kf3 {[%clk 0:00:04]}  Nc4 {[%clk 0:00:02]} 62. e4 {[%clk 0:00:04]}  Nd2+ {[%clk 0:00:02]} 63. Ke3 {[%clk 0:00:04]}  Nxe4 {[%clk 0:00:02]} 64. Kd4 {[%clk 0:00:05]}  Nd6 {[%clk 0:00:01]} 65. Kc5 {[%clk 0:00:04]}  Nc4 {[%clk 0:00:01]} 66. Kb5 {[%clk 0:00:05]} 1-0


[Site "https://www.chess.com"]

[Event "Titled Tuesday Blitz September 14 2021"]
[White "Keymer, Vincent"]
[Black "Deac, Bogdan-Daniel"]
[WhiteFideId "12940690"]
[BlackFideId "1226380"]
[WhiteElo "2524"]
[BlackElo "2605"]
[Result "1-0"]
[Round "11"]
[TimeControl "180+1"]
[Date "2021.09.15"]
[WhiteClock "0:00:05"]
[BlackClock "0:00:01"]

1. Nf3 {[%clk 0:03:00]}  d5 {[%clk 0:02:59]} 2. e3 {[%clk 0:03:00]}  Nc6 {[%clk 0:02:56]} 3. d4 {[%clk 0:02:59]}  Bf5 {[%clk 0:02:53]} 4. c4 {[%clk 0:02:52]}  e6 {[%clk 0:02:49]} 5. a3 {[%clk 0:02:52]}  Nf6 {[%clk 0:02:43]} 6. Nc3 {[%clk 0:02:52]}  Be7 {[%clk 0:02:37]} 7. b4 {[%clk 0:02:50]}  Ne4 {[%clk 0:02:29]} 8. Bb2 {[%clk 0:02:46]}  O-O {[%clk 0:02:28]} 9. Be2 {[%clk 0:02:40]}  Bf6 {[%clk 0:02:22]} 10. O-O {[%clk 0:02:30]}  dxc4 {[%clk 0:02:19]} 11. Bxc4 {[%clk 0:02:25]}  Ne7 {[%clk 0:02:19]} 12. Bd3 {[%clk 0:02:14]}  Nxc3 {[%clk 0:02:09]} 13. Bxc3 {[%clk 0:02:15]}  Nd5 {[%clk 0:02:02]} 14. Bb2 {[%clk 0:02:11]}  Bg6 {[%clk 0:01:40]} 15. Re1 {[%clk 0:02:05]}  c6 {[%clk 0:01:21]} 16. e4 {[%clk 0:01:44]}  Nb6 {[%clk 0:01:21]} 17. Rc1 {[%clk 0:01:23]}  Bh5 {[%clk 0:01:17]} 18. Be2 {[%clk 0:01:15]}  a5 {[%clk 0:01:16]} 19. b5 {[%clk 0:00:51]}  Bxf3 {[%clk 0:01:02]} 20. Bxf3 {[%clk 0:00:51]}  cxb5 {[%clk 0:01:02]} 21. e5 {[%clk 0:00:32]}  Be7 {[%clk 0:01:00]} 22. Bxb7 {[%clk 0:00:31]}  Rb8 {[%clk 0:00:59]} 23. Be4 {[%clk 0:00:31]}  Nc4 {[%clk 0:00:58]} 24. Ba1 {[%clk 0:00:20]}  Bxa3 {[%clk 0:00:39]} 25. Rc3 {[%clk 0:00:20]}  g6 {[%clk 0:00:32]} 26. Rh3 {[%clk 0:00:14]}  Bb4 {[%clk 0:00:26]} 27. Re2 {[%clk 0:00:13]}  f5 {[%clk 0:00:15]} 28. exf6 {[%clk 0:00:12]}  Qxf6 {[%clk 0:00:15]} 29. d5 {[%clk 0:00:11]}  e5 {[%clk 0:00:15]} 30. Rf3 {[%clk 0:00:08]}  Qd6 {[%clk 0:00:15]} 31. Rg3 {[%clk 0:00:08]}  Bc5 {[%clk 0:00:13]} 32. h4 {[%clk 0:00:08]}  Qb6 {[%clk 0:00:08]} 33. Qe1 {[%clk 0:00:05]}  Nd6 {[%clk 0:00:05]} 34. Bb1 {[%clk 0:00:04]}  Bd4 {[%clk 0:00:04]} 35. Bxd4 {[%clk 0:00:04]}  Qxd4 {[%clk 0:00:05]} 36. h5 {[%clk 0:00:04]}  e4 {[%clk 0:00:04]} 37. hxg6 {[%clk 0:00:04]}  h6 {[%clk 0:00:04]} 38. Bxe4 {[%clk 0:00:04]}  Rbe8 {[%clk 0:00:03]} 39. g7 {[%clk 0:00:04]}  Rf7 {[%clk 0:00:02]} 40. Bh7+ {[%clk 0:00:04]}  Kxh7 {[%clk 0:00:02]} 41. Rxe8 {[%clk 0:00:05]}  Rxg7 {[%clk 0:00:01]} 42. Rxg7+ {[%clk 0:00:05]}  Kxg7 {[%clk 0:00:01]} 43. Qe7+ {[%clk 0:00:05]}  Nf7 {[%clk 0:00:01]} 44. Qf8+ {[%clk 0:00:05]} 1-0


[Site "https://www.chess.com"]

[Event "Titled Tuesday Blitz September 14 2021"]
[White "Kezin, Roman"]
[Black "Slugin, Sergey"]
[WhiteFideId "24124621"]
[BlackFideId "4122569"]
[WhiteElo "2570"]
[BlackElo "2358"]
[Result "1-0"]
[Round "11"]
[TimeControl "180+1"]
[Date "2021.09.15"]
[WhiteClock "0:01:31"]
[BlackClock "0:01:17"]

1. Nc3 {[%clk 0:02:59]}  c5 {[%clk 0:02:58]} 2. Nf3 {[%clk 0:02:58]}  g6 {[%clk 0:02:54]} 3. d4 {[%clk 0:02:55]}  cxd4 {[%clk 0:02:54]} 4. Nxd4 {[%clk 0:02:56]}  Bg7 {[%clk 0:02:55]} 5. g3 {[%clk 0:02:56]}  Nc6 {[%clk 0:02:55]} 6. Nb3 {[%clk 0:02:51]}  Nf6 {[%clk 0:02:54]} 7. Bg2 {[%clk 0:02:51]}  O-O {[%clk 0:02:54]} 8. O-O {[%clk 0:02:52]}  d6 {[%clk 0:02:55]} 9. e4 {[%clk 0:02:52]}  Be6 {[%clk 0:02:52]} 10. h3 {[%clk 0:02:51]}  Rc8 {[%clk 0:02:51]} 11. Nd5 {[%clk 0:02:49]}  Na5 {[%clk 0:02:41]} 12. Nd4 {[%clk 0:02:49]}  Nc6 {[%clk 0:02:28]} 13. Nxe6 {[%clk 0:02:42]}  fxe6 {[%clk 0:02:28]} 14. Nf4 {[%clk 0:02:42]}  Qd7 {[%clk 0:02:22]} 15. h4 {[%clk 0:02:40]}  Nd8 {[%clk 0:02:07]} 16. Bh3 {[%clk 0:02:33]}  Kh8 {[%clk 0:02:07]} 17. c3 {[%clk 0:02:24]}  a5 {[%clk 0:01:53]} 18. Re1 {[%clk 0:01:58]}  Rc5 {[%clk 0:01:52]} 19. Be3 {[%clk 0:01:57]}  Rb5 {[%clk 0:01:50]} 20. Bd4 {[%clk 0:01:53]}  Nh5 {[%clk 0:01:38]} 21. Nxh5 {[%clk 0:01:39]}  Rxh5 {[%clk 0:01:36]} 22. Bg4 {[%clk 0:01:35]}  Rb5 {[%clk 0:01:35]} 23. c4 {[%clk 0:01:35]}  Re5 {[%clk 0:01:17]} 24. f4 {[%clk 0:01:31]} 1-0


[Site "https://www.chess.com"]

[Event "Titled Tuesday Blitz September 14 2021"]
[White "Khanin, Semen"]
[Black "Kamsky, Gata"]
[WhiteFideId "4111990"]
[BlackFideId "2000024"]
[WhiteElo "2449"]
[BlackElo "2603"]
[Result "0-1"]
[Round "11"]
[TimeControl "180+1"]
[Date "2021.09.15"]
[WhiteClock "0:00:06"]
[BlackClock "0:01:15"]

1. e4 {[%clk 0:03:00]}  c5 {[%clk 0:02:50]} 2. c3 {[%clk 0:02:59]}  Nf6 {[%clk 0:02:49]} 3. e5 {[%clk 0:02:59]}  Nd5 {[%clk 0:02:49]} 4. Bc4 {[%clk 0:02:59]}  Nb6 {[%clk 0:02:48]} 5. Bb3 {[%clk 0:02:59]}  d5 {[%clk 0:02:48]} 6. exd6 {[%clk 0:02:59]}  Qxd6 {[%clk 0:02:48]} 7. Nf3 {[%clk 0:02:58]}  Be6 {[%clk 0:02:48]} 8. O-O {[%clk 0:02:53]}  Nc6 {[%clk 0:02:48]} 9. Na3 {[%clk 0:02:53]}  a6 {[%clk 0:02:47]} 10. Re1 {[%clk 0:02:43]}  Bd5 {[%clk 0:02:43]} 11. Bxd5 {[%clk 0:02:40]}  Qxd5 {[%clk 0:02:42]} 12. Qb3 {[%clk 0:02:31]}  Qxb3 {[%clk 0:02:41]} 13. axb3 {[%clk 0:02:32]}  e6 {[%clk 0:02:40]} 14. Nc2 {[%clk 0:02:26]}  Nd5 {[%clk 0:02:34]} 15. d4 {[%clk 0:02:24]}  cxd4 {[%clk 0:02:34]} 16. Ncxd4 {[%clk 0:02:24]}  Nxd4 {[%clk 0:02:34]} 17. Nxd4 {[%clk 0:02:24]}  Bc5 {[%clk 0:02:35]} 18. Nf3 {[%clk 0:02:05]}  O-O-O {[%clk 0:02:16]} 19. Ne5 {[%clk 0:01:58]}  Rhf8 {[%clk 0:02:15]} 20. b4 {[%clk 0:01:57]}  Bd6 {[%clk 0:02:14]} 21. Nc4 {[%clk 0:01:57]}  Bc7 {[%clk 0:02:10]} 22. Bg5 {[%clk 0:01:56]}  f6 {[%clk 0:02:09]} 23. Bh4 {[%clk 0:01:52]}  e5 {[%clk 0:02:08]} 24. f3 {[%clk 0:01:52]}  b5 {[%clk 0:02:04]} 25. Na5 {[%clk 0:01:48]}  Bxa5 {[%clk 0:01:57]} 26. Rxa5 {[%clk 0:01:48]}  Kb7 {[%clk 0:01:57]} 27. Rea1 {[%clk 0:01:43]}  Nc7 {[%clk 0:01:56]} 28. b3 {[%clk 0:01:31]}  Rd3 {[%clk 0:01:56]} 29. c4 {[%clk 0:01:31]}  Rfd8 {[%clk 0:01:48]} 30. cxb5 {[%clk 0:01:18]}  Rd1+ {[%clk 0:01:48]} 31. Rxd1 {[%clk 0:01:16]}  Rxd1+ {[%clk 0:01:47]} 32. Kf2 {[%clk 0:01:17]}  Nxb5 {[%clk 0:01:46]} 33. Ra2 {[%clk 0:01:15]}  Rd3 {[%clk 0:01:45]} 34. Ke2 {[%clk 0:00:53]}  Rd4 {[%clk 0:01:44]} 35. Be1 {[%clk 0:00:53]}  Rd5 {[%clk 0:01:37]} 36. Ke3 {[%clk 0:00:43]}  Rd1 {[%clk 0:01:35]} 37. Bd2 {[%clk 0:00:42]}  Rb1 {[%clk 0:01:34]} 38. Kd3 {[%clk 0:00:38]}  Rxb3+ {[%clk 0:01:31]} 39. Kc4 {[%clk 0:00:39]}  Rb1 {[%clk 0:01:31]} 40. Kd5 {[%clk 0:00:38]}  Rg1 {[%clk 0:01:29]} 41. g3 {[%clk 0:00:30]}  Rg2 {[%clk 0:01:27]} 42. Ke6 {[%clk 0:00:30]}  Rxh2 {[%clk 0:01:26]} 43. Kf7 {[%clk 0:00:29]}  g5 {[%clk 0:01:21]} 44. Kxf6 {[%clk 0:00:27]}  g4 {[%clk 0:01:21]} 45. fxg4 {[%clk 0:00:17]}  e4 {[%clk 0:01:21]} 46. Ra1 {[%clk 0:00:08]}  Rxd2 {[%clk 0:01:18]} 47. Rh1 {[%clk 0:00:09]}  e3 {[%clk 0:01:17]} 48. Rxh7+ {[%clk 0:00:09]}  Kc6 {[%clk 0:01:17]} 49. Re7 {[%clk 0:00:09]}  Rf2+ {[%clk 0:01:15]} 50. Kg7 {[%clk 0:00:06]}  e2 {[%clk 0:01:15]} 51. g5 {[%clk 0:00:06]}  Nd4 {[%clk 0:01:15]} 0-1


[Site "https://www.chess.com"]

[Event "Titled Tuesday Blitz September 14 2021"]
[White "Koellner, Ruben Gideon"]
[Black "Rozman, Levy"]
[WhiteFideId "12993093"]
[BlackFideId "2039877"]
[WhiteElo "2561"]
[BlackElo "2376"]
[Result "0-1"]
[Round "11"]
[TimeControl "180+1"]
[Date "2021.09.15"]
[WhiteClock "0:02:19"]
[BlackClock "0:02:06"]

1. d4 {[%clk 0:02:59]}  g6 {[%clk 0:02:59]} 2. Nf3 {[%clk 0:02:56]}  Bg7 {[%clk 0:02:59]} 3. Nbd2 {[%clk 0:02:56]}  d6 {[%clk 0:02:58]} 4. e4 {[%clk 0:02:56]}  Nc6 {[%clk 0:02:58]} 5. c3 {[%clk 0:02:56]}  e5 {[%clk 0:02:57]} 6. dxe5 {[%clk 0:02:54]}  dxe5 {[%clk 0:02:50]} 7. Bc4 {[%clk 0:02:53]}  Nge7 {[%clk 0:02:50]} 8. O-O {[%clk 0:02:51]}  O-O {[%clk 0:02:48]} 9. a4 {[%clk 0:02:51]}  a5 {[%clk 0:02:47]} 10. b3 {[%clk 0:02:50]}  h6 {[%clk 0:02:44]} 11. Qe2 {[%clk 0:02:49]}  Kh7 {[%clk 0:02:30]} 12. Ba3 {[%clk 0:02:41]}  Qe8 {[%clk 0:02:26]} 13. Rad1 {[%clk 0:02:37]}  Be6 {[%clk 0:02:19]} 14. Bxe6 {[%clk 0:02:32]}  fxe6 {[%clk 0:02:20]} 15. Nc4 {[%clk 0:02:30]}  g5 {[%clk 0:02:16]} 16. Ne1 {[%clk 0:02:19]}  b6 {[%clk 0:02:06]} 0-1


[Site "https://www.chess.com"]